bitfinex/quotes_ETHUSD_20250725
["timestamp","ask_amount","ask_price","bid_price","bid_amount"]
[1753403831520,0.002,3667.3,3666.8,2.72717355]
[1753403831674,0.002,3667.3,3666.7,2.72719077]
[1753403831675,0.4946,3667.3,3666.7,2.72719077]
[1753403831878,0.4737,3667.2,3667.0,2.7269633]
[1753403832079,0.002,3667.3,3666.9,2.72709054]
[1753403832287,0.002,3667.3,3666.9,2.7270304]
[1753403832516,0.002,3667.3,3666.9,2.72704228]
[1753403832683,0.002,3667.3,3666.8,2.72712131]
[1753403832890,0.4757,3667.3,3666.9,2.72708013]
[1753403833430,0.4757,3667.3,3666.5,2.72738935]
[1753403833627,0.02027371,3667.2,3666.8,2.72716207]
[1753403834126,0.136,3667.0,3666.9,2.72709918]
[1753403834426,0.136,3667.0,3666.5,0.136]
[1753403834626,0.136,3666.8,3666.3,2.72750037]
[1753403834915,0.136,3666.4,3666.3,2.72753067]
[1753403835484,5.3364,3666.7,3666.5,2.72733697]
[1753403835718,0.136,3666.6,3666.5,2.72733697]
[1753403836292,0.136,3666.6,3666.0,0.136]
[1753403836495,0.136,3666.6,3666.2,2.72761852]
[1753403836702,0.136,3666.4,3666.1,2.72764554]
[1753403837303,0.136,3666.4,3666.2,2.72761564]
[1753403837526,0.136,3666.4,3666.1,2.72767545]
[1753403837822,0.136,3666.4,3666.2,2.72760572]
[1753403838026,0.136,3666.4,3666.0,2.72776868]
[1753403838228,0.136,3666.4,3666.1,2.72765427]
[1753403838524,0.136,3666.4,3666.1,2.72769428]
[1753403838830,0.136,3666.4,3666.2,2.72760272]
[1753403839326,0.136,3666.4,3666.2,2.72760399]
[1753403839691,0.12516938,3666.4,3666.2,2.72760399]
[1753403840703,0.12516938,3666.4,3666.2,2.72760163]
[1753403841229,0.12516938,3666.4,3665.9,3.318938]
[1753403841531,0.12516938,3666.4,3665.9,2.863838]
[1753403841894,0.12516938,3666.4,3666.3,2.72754548]
[1753403842231,0.136,3666.6,3666.5,2.72739669]
[1753403842525,4.637,3667.1,3666.6,2.72728946]
[1753403842722,4.637,3667.1,3666.3,2.72749576]
[1753403842723,0.94347371,3667.0,3666.3,2.72749576]
[1753403842926,0.136,3666.5,3666.2,2.72759248]
[1753403843098,4.639,3666.5,3666.2,2.72759248]
[1753403843298,4.639,3666.5,3666.0,2.72773881]
[1753403843506,4.639,3666.5,3665.9,0.136]
[1753403843829,4.503,3666.5,3666.2,2.72759319]
[1753403844433,4.503,3666.5,3666.3,2.72754394]
[1753403844730,4.503,3666.5,3666.1,2.72869191]
[1753403845030,4.47067022,3666.4,3666.1,0.001]
[1753403845393,2.72761987,3666.2,3666.1,0.001]
[1753403845595,3.54759358,3666.2,3666.1,0.001]
[1753403845795,5.32353113,3666.2,3666.1,0.001]
[1753403846615,2.59591126,3666.2,3666.1,0.001]
[1753403846819,5.32353113,3666.2,3666.1,0.001]
[1753403847019,5.30325742,3666.2,3666.1,0.001]
[1753403849103,2.57563755,3666.2,3666.1,0.001]
[1753403849297,5.30325742,3666.2,3666.1,0.001]
[1753403850740,9.81253113,3666.2,3666.1,0.001]
[1753403850894,9.79225742,3666.2,3666.1,0.001]
[1753403851296,5.30325742,3666.2,3666.1,0.001]
[1753403851516,9.80653113,3666.2,3666.1,0.001]
[1753403851729,9.78625742,3666.2,3666.1,0.001]
[1753403853903,9.92225742,3666.2,3666.1,0.001]
[1753403854104,24.42225742,3666.2,3666.1,0.001]
[1753403855140,3.52254077,3665.5,3665.1,0.04]
[1753403855435,2.86516407,3665.2,3665.1,0.04]
[1753403855754,2.86516407,3665.2,3663.7,0.495]
[1753403855755,0.7944,3665.0,3662.0,1.0]
[1753403856038,2.60444489,3664.9,3663.2,0.816]
[1753403856209,0.1368,3664.3,3664.2,2.72910867]
[1753403856398,0.4667,3665.7,3664.2,2.72910867]
[1753403856399,0.57240496,3665.8,3664.3,2.72903419]
[1753403856599,0.7928,3666.1,3664.6,2.72877641]
[1753403856600,4.508,3665.7,3664.6,2.72877641]
[1753403856802,0.4565,3666.3,3664.7,0.97074701]
[1753403857017,0.4565,3666.3,3664.8,0.7978]
[1753403857018,0.7733,3666.1,3664.8,0.7978]
[1753403857233,0.4905971,3666.0,3664.8,0.7978]
[1753403857412,0.4667,3665.9,3664.3,0.7978]
[1753403857615,0.7733,3665.2,3664.3,0.7978]
[1753403857817,0.7733,3665.2,3663.1,0.044]
[1753403857818,0.4667,3665.9,3663.1,0.044]
[1753403857819,2.72985367,3663.2,3663.1,0.044]
[1753403857998,7.25085367,3663.2,3663.1,0.044]
[1753403858637,4.521,3663.2,3663.1,0.044]
[1753403858840,4.522,3663.2,3663.1,0.044]
[1753403859202,0.7733,3663.5,3663.1,0.044]
[1753403859529,3.0,3664.8,3663.1,0.044]
[1753403859530,7.8733,3664.2,3663.5,2.7296031]
[1753403859736,4.555,3664.1,3663.5,2.7296031]
[1753403859909,0.03411478,3664.1,3663.2,2.72985367]
[1753403860105,0.03411478,3664.1,3663.4,2.72970396]
[1753403860106,4.555,3664.0,3663.4,2.72970396]
[1753403860305,0.03411478,3664.1,3663.2,3.18202904]
[1753403860306,0.03411478,3664.1,3663.8,2.72934438]
[1753403860531,4.552,3664.0,3663.9,2.72933213]
[1753403860837,7.1,3665.0,3664.3,2.72902901]
[1753403861003,4.553,3664.9,3664.4,2.72888843]
[1753403861202,4.553,3664.9,3664.5,2.72885986]
[1753403861457,4.553,3664.9,3664.6,2.7288023]
[1753403861764,4.552,3664.8,3664.5,2.72888499]
[1753403861926,7.1,3665.0,3664.3,0.495]
[1753403861927,4.552,3664.7,3664.3,0.495]
[1753403862107,4.552,3664.7,3664.6,2.72881078]
[1753403862323,4.551,3664.8,3664.6,0.9501]
[1753403862583,1.38302369,3665.8,3665.2,2.72833954]
[1753403862726,4.78595636,3665.7,3665.1,2.72842878]
[1753403863579,0.23795636,3665.7,3664.7,0.9501]
[1753403863726,4.548,3665.6,3664.8,0.02064581]
[1753403863932,4.548,3665.6,3665.5,2.72814077]
[1753403864254,4.548,3665.6,3665.5,3.22314077]
[1753403866421,4.548,3665.6,3665.5,0.495]
[1753403866626,4.548,3665.6,3665.5,3.22314077]
[1753403866872,4.548,3665.6,3665.5,0.495]
[1753403867077,4.548,3665.6,3665.5,3.22314077]
[1753403867371,4.548,3665.6,3665.4,0.1368]
[1753403867800,4.548,3665.6,3665.5,2.72814077]
[1753403868072,4.548,3665.6,3665.5,3.19234077]
[1753403868293,4.548,3665.6,3665.4,0.1368]
[1753403868831,0.176,3665.9,3665.6,2.72805194]
[1753403869064,4.531,3665.8,3665.5,2.72813167]
[1753403869260,4.531,3665.8,3665.4,0.1368]
[1753403869662,4.531,3665.8,3665.4,2.86498922]
[1753403871176,4.531,3665.8,3665.4,0.1368]
[1753403871380,4.531,3665.8,3664.8,3.0]
[1753403871381,5.71238951,3665.8,3664.8,0.8076]
[1753403871534,0.04,3665.9,3664.9,0.91424395]
[1753403871730,0.136,3665.7,3665.2,0.1368]
[1753403871935,0.136,3665.7,3665.3,3.6218164]
[1753403872162,0.136,3665.7,3665.3,0.4642]
[1753403872483,4.524,3665.6,3664.8,3.8076]
[1753403872776,4.9585,3665.6,3665.1,0.1368]
[1753403873147,4.524,3665.6,3665.1,2.86523378]
[1753403874315,4.524,3665.6,3665.2,2.72835535]
[1753403874462,4.524,3665.6,3665.1,2.86522069]
[1753403875113,4.524,3665.6,3665.1,0.1368]
[1753403875266,4.524,3665.6,3665.1,2.86523295]
[1753403875576,4.524,3665.6,3665.1,0.1368]
[1753403875781,4.524,3665.6,3665.2,2.72836204]
[1753403875981,4.524,3665.6,3665.1,0.1368]
[1753403876198,4.524,3665.6,3665.1,2.8652353]
[1753403876517,4.515,3665.5,3665.1,2.8652353]
[1753403876681,0.136,3665.7,3665.1,2.8652353]
[1753403876883,4.51,3665.6,3665.1,2.8652353]
[1753403877095,4.51,3665.6,3665.1,2.8625353]
[1753403877282,4.51,3665.6,3665.2,2.72833779]
[1753403877477,0.136,3665.7,3665.1,0.1341]
[1753403877700,4.509,3665.6,3665.5,2.72807622]
[1753403877902,0.04,3665.9,3665.6,0.754]
[1753403878101,4.506,3665.8,3665.7,2.86399192]
[1753403878398,4.506,3665.8,3665.7,3.75759192]
[1753403878598,4.506,3665.8,3665.7,1.0296]
[1753403878766,4.506,3665.8,3665.7,2.86399192]
[1753403879510,4.506,3665.8,3665.7,3.32819192]
[1753403880581,4.506,3665.8,3665.7,3.75759192]
[1753403880779,0.04,3665.9,3665.8,3.5277175]
[1753403881011,0.04,3665.9,3665.8,4.4213175]
[1753403881210,1e-08,3665.9,3665.8,4.4213175]
[1753403881911,1e-08,3665.9,3665.8,2.7279175]
[1753403882068,4.93350001,3665.9,3665.0,0.8194]
[1753403882406,4.93350001,3665.9,3664.9,0.1368]
[1753403882407,0.1368,3665.4,3664.9,0.1368]
[1753403882611,0.8066,3665.7,3665.0,0.91424533]
[1753403882796,1e-08,3665.9,3665.8,2.7279175]
[1753403882998,4.49900001,3665.9,3665.8,2.7279175]
[1753403883313,4.49900001,3665.9,3665.8,3.7575175]
[1753403883824,1e-08,3665.9,3665.8,5.19737005]
[1753403884241,1e-08,3665.9,3665.8,5.06137005]
[1753403884544,1e-08,3665.9,3665.8,8.06137005]
[1753403885520,4.5,3666.8,3666.7,3.54594793]
[1753403885521,0.002,3666.8,3666.7,3.54594793]
[1753403886024,0.002,3666.8,3666.7,4.43954793]
[1753403886438,0.002,3666.8,3666.7,5.15623674]
[1753403888229,1e-08,3666.8,3666.7,5.17685174]
[1753403888429,1e-08,3666.8,3666.7,5.15623674]
[1753403888837,1e-08,3666.8,3666.6,2.72731662]
[1753403889009,1e-08,3666.8,3666.5,2.72732563]
[1753403889208,1e-08,3666.8,3666.3,3.53612223]
[1753403889209,1e-08,3666.8,3666.6,2.72730866]
[1753403889731,1e-08,3666.8,3666.7,2.72724793]
[1753403890296,1e-08,3666.8,3666.1,2.72769428]
[1753403890496,0.9138,3666.7,3665.8,0.64955255]
[1753403890699,0.03409152,3666.6,3665.9,2.72784309]
[1753403890919,0.03409152,3666.6,3665.8,0.001]
[1753403891122,3.64123721,3666.5,3665.8,0.001]
[1753403891324,2.72759771,3666.3,3665.8,0.001]
[1753403891535,1e-08,3666.8,3665.8,0.02162915]
[1753403891737,4.506,3666.7,3665.8,0.02162534]
[1753403891911,4.506,3666.7,3666.2,2.72756405]
[1753403892110,0.4345,3666.6,3666.2,2.72756405]
[1753403892297,0.4345,3666.6,3666.0,2.72775025]
[1753403892298,0.4345,3666.6,3666.4,2.72745231]
[1753403892501,0.4345,3666.6,3666.3,2.72752767]
[1753403892748,0.4345,3666.6,3666.5,2.72739669]
[1753403892913,0.4345,3666.6,3666.2,2.72761325]
[1753403893121,0.4345,3666.6,3666.4,2.72745441]
[1753403893470,0.4345,3666.6,3666.5,2.72739669]
[1753403893650,4.9853,3666.7,3666.5,2.72739669]
[1753403893965,1e-08,3666.8,3666.5,2.72739669]
[1753403893966,1e-08,3666.8,3666.7,2.72724793]
[1753403894172,4.49900001,3666.8,3666.7,2.72724793]
[1753403894948,4.49900001,3666.8,3666.7,3.19144793]
[1753403895714,4.49900001,3666.8,3666.7,2.72724793]
[1753403895954,1e-08,3666.8,3666.7,2.72724793]
[1753403896819,1e-08,3666.8,3666.7,3.21544793]
[1753403897019,1e-08,3666.8,3666.7,4.28012683]
[1753403897255,1e-08,3666.8,3666.7,5.09244183]
[1753403897555,1e-08,3666.8,3666.7,4.46394793]
[1753403897758,1e-08,3666.8,3666.7,4.00714793]
[1753403898417,1e-08,3666.8,3666.7,4.46394793]
[1753403899037,1e-08,3666.8,3666.7,3.51894793]
[1753403899234,1e-08,3666.8,3666.7,4.00714793]
[1753403899462,1e-08,3666.8,3666.7,0.4882]
[1753403899658,1e-08,3666.8,3666.6,0.136]
[1753403900065,1e-08,3666.8,3666.6,2.8633179]
[1753403900372,1e-08,3666.8,3665.0,0.001]
[1753403900373,0.77540001,3666.8,3666.1,2.72764645]
[1753403900571,0.77540001,3666.8,3665.8,0.8317]
[1753403900572,0.136,3666.5,3666.0,2.72774958]
[1753403900774,0.4633,3666.4,3666.0,2.72774958]
[1753403900974,0.03409338,3666.4,3665.9,0.136]
[1753403901280,0.136,3666.1,3665.8,0.001]
[1753403901653,1.7117,3666.0,3665.8,0.001]
[1753403901974,7.37794112,3665.9,3665.8,0.001]
[1753403902147,8.28014309,3665.9,3665.8,0.001]
[1753403902573,5.5523,3665.9,3665.8,0.001]
[1753403902871,8.31224112,3665.9,3665.8,0.001]
[1753403903069,9.1160713,3665.9,3665.8,0.001]
[1753403903263,6.38822821,3665.9,3665.8,0.001]
[1753403903460,1.91022821,3665.9,3665.8,0.001]
[1753403903669,5.0773,3665.9,3665.8,0.001]
[1753403904145,0.136,3665.9,3665.8,2.7289175]
[1753403904344,4.474,3665.9,3665.8,2.7289175]
[1753403904846,2.72719871,3666.8,3666.0,2.72776868]
[1753403904847,4.474,3666.1,3666.0,2.72776868]
[1753403905165,0.136,3666.6,3666.0,2.86371856]
[1753403905166,4.474,3666.2,3666.0,2.86371856]
[1753403905342,0.17009152,3666.6,3666.0,0.136]
[1753403905546,1e-08,3666.8,3666.6,2.72731674]
[1753403905879,1e-08,3666.8,3665.8,0.001]
[1753403905880,4.473,3666.7,3665.8,0.001]
[1753403906105,4.473,3666.7,3666.4,2.72742865]
[1753403906399,4.473,3666.7,3665.8,0.001]
[1753403906400,0.49739152,3666.6,3665.8,0.001]
[1753403906607,0.758,3666.5,3666.0,2.72774141]
[1753403906870,0.9363,3666.4,3665.8,0.001]
[1753403906973,2.72762284,3666.2,3665.8,0.001]
[1753403907170,4.50909617,3666.1,3665.8,0.001]
[1753403907379,5.97487066,3666.1,3665.8,0.001]
[1753403907610,4.474,3666.0,3665.8,0.001]
[1753403907811,4.473,3665.9,3665.8,0.001]
[1753403908616,2.72760333,3666.3,3665.8,0.001]
[1753403908817,4.471,3665.9,3665.8,0.001]
[1753403910022,4.471,3665.9,3665.8,2.72885861]
[1753403910725,4.471,3665.9,3665.8,0.001]
[1753403910923,0.9363,3666.4,3665.8,2.7289175]
[1753403911137,0.4421662,3666.3,3665.9,2.72783571]
[1753403911327,4.9061662,3666.3,3666.0,2.7277517]
[1753403911828,1e-08,3666.8,3666.4,2.72739751]
[1753403912035,4.463,3666.7,3666.5,2.72738091]
[1753403912337,4.463,3666.7,3666.4,2.7274048]
[1753403912503,0.97039152,3666.6,3665.4,0.4882]
[1753403912708,0.7951,3666.2,3665.6,2.72804424]
[1753403912904,2.72781933,3666.0,3665.3,2.72826358]
[1753403913141,2.76188838,3666.0,3665.3,2.72826358]
[1753403913497,0.9363,3665.9,3665.4,2.7282118]
[1753403913703,0.9363,3665.9,3665.6,2.72804698]
[1753403913917,0.9363,3665.9,3665.5,2.72813343]
[1753403914533,0.0340971,3666.0,3665.1,0.001]
[1753403914707,0.04,3666.9,3665.8,2.72891745]
[1753403914708,4.457,3665.9,3665.8,2.72891745]
[1753403914912,0.822,3666.7,3666.1,2.72767585]
[1753403915118,4.63683,3666.6,3666.0,2.7277446]
[1753403915348,4.63683,3666.6,3665.9,2.72783688]
[1753403915645,0.822,3666.7,3666.3,2.72753994]
[1753403915844,4.455,3666.5,3666.1,2.7276937]
[1753403916065,0.136,3666.4,3666.1,2.72763895]
[1753403916206,0.136,3666.4,3666.0,2.72774171]
[1753403916713,0.5993,3666.4,3666.0,2.72771404]
[1753403917934,0.5993,3666.4,3666.1,2.7276846]
[1753403918130,0.136,3666.4,3666.1,2.7276846]
[1753403918431,0.136,3666.4,3665.9,0.136]
[1753403918672,3.50186721,3666.4,3665.9,0.136]
[1753403918811,0.136,3666.1,3665.8,0.001]
[1753403919145,4.447,3666.0,3665.8,0.001]
[1753403919563,4.9103,3666.0,3665.8,0.001]
[1753403919875,1.2441,3665.9,3665.8,0.001]
[1753403920348,0.7808,3665.9,3665.8,0.001]
[1753403922251,0.7808,3665.9,3665.8,2.7289175]
[1753403922447,0.7848,3666.7,3665.8,1.04857782]
[1753403922652,4.576,3666.6,3666.4,2.72741611]
[1753403922848,4.576,3666.6,3666.1,2.72768452]
[1753403923048,4.576,3666.6,3666.3,2.7274973]
[1753403923346,4.576,3666.6,3666.4,2.72744631]
[1753403923508,4.576,3666.6,3666.5,2.72739669]
[1753403923712,4.576,3666.6,3666.4,2.72744855]
[1753403923913,0.4633,3667.1,3666.7,2.72724793]
[1753403924114,7.8924,3667.3,3666.7,2.72724793]
[1753403924115,4.43700001,3666.8,3666.7,2.72724793]
[1753403924358,4.43700001,3666.8,3666.5,3.21554128]
[1753403924521,4.43700001,3666.8,3666.6,2.72731612]
[1753403924729,4.43700001,3666.8,3666.5,2.72737951]
[1753403925218,4.43700001,3666.8,3666.6,2.72726405]
[1753403925649,4.435,3666.7,3666.6,2.72726405]
[1753403926026,1e-08,3666.8,3666.7,2.72724793]
[1753403926326,4.43100001,3666.8,3666.7,2.72724793]
[1753403926747,4.43100001,3666.8,3666.5,0.4713]
[1753403927062,4.43100001,3666.8,3666.5,2.72734972]
[1753403927220,4.43100001,3666.8,3666.6,2.72732195]
[1753403927423,4.43100001,3666.8,3666.7,2.72724793]
[1753403928023,4.43100001,3666.8,3666.5,2.72734703]
[1753403928223,4.89200001,3666.8,3666.5,2.72734703]
[1753403928450,4.89200001,3666.8,3666.6,2.72730693]
[1753403928631,4.89200001,3666.8,3666.7,2.72724793]
[1753403928843,4.89200001,3666.8,3666.6,2.72730152]
[1753403929061,4.43100001,3666.8,3666.4,0.136]
[1753403929357,4.43100001,3666.8,3666.5,2.7273866]
[1753403929716,0.9408,3666.7,3665.9,0.7643]
[1753403929965,0.136,3666.4,3665.9,2.86382101]
[1753403930163,4.421,3666.3,3665.9,2.86382101]
[1753403930464,4.882,3666.3,3665.8,0.001]
[1753403930673,4.882,3666.3,3665.8,0.137]
[1753403930834,0.461,3666.2,3665.8,0.137]
[1753403931566,0.461,3666.2,3665.8,2.86490029]
[1753403931768,0.77455211,3666.2,3665.8,0.137]
[1753403931970,0.136,3665.9,3665.8,0.001]
[1753403932146,7.18394112,3665.9,3665.8,0.001]
[1753403932348,8.09064309,3665.9,3665.8,0.001]
[1753403932569,8.61932853,3665.9,3665.8,0.001]
[1753403935575,8.61132853,3665.9,3665.8,0.001]
[1753403939558,9.39152853,3665.9,3665.8,0.001]
[1753403940161,9.96579745,3665.9,3665.8,0.001]
[1753403941209,12.96579745,3665.9,3665.8,0.001]
[1753403942196,13.10179745,3665.9,3665.8,0.001]
[1753403942597,3.53016407,3665.2,3665.1,0.001]
[1753403942815,8.10706862,3665.2,3665.1,0.001]
[1753403943113,9.01376407,3665.2,3665.1,0.001]
[1753403944987,3.66696407,3665.2,3665.1,0.001]
[1753403945192,8.53396407,3665.2,3665.1,0.001]
[1753403945380,4.19564951,3665.2,3665.1,0.001]
[1753403945582,8.60164951,3665.2,3665.1,0.001]
[1753403945781,9.06264951,3665.2,3665.1,0.001]
[1753403947899,4.5428,3665.2,3665.1,0.001]
[1753403949013,2.86516407,3665.2,3665.1,0.001]
[1753403949193,7.27116407,3665.2,3665.1,0.001]
[1753403949389,0.1368,3665.2,3665.1,0.001]
[1753403949591,4.5428,3665.2,3665.1,0.001]
[1753403949792,7.27116407,3665.2,3665.1,0.001]
[1753403950104,9.02426407,3665.2,3665.1,0.001]
[1753403952698,0.9491,3665.2,3665.1,0.001]
[1753403952898,4.5428,3665.2,3665.1,0.001]
[1753403953909,7.30526862,3665.2,3665.1,0.001]
[1753403954082,8.21196407,3665.2,3665.1,0.001]
[1753403954412,9.00016407,3665.2,3665.1,0.001]
[1753403956825,23.50016407,3665.2,3665.1,0.001]
[1753403958320,3.53428525,3664.5,3664.4,0.001]
[1753403958488,3.53428525,3664.5,3664.1,0.04]
[1753403958489,2.72895972,3664.4,3664.3,1e-08]
[1753403958694,3.58387171,3664.4,3664.3,1e-08]
[1753403958889,4.47667171,3664.4,3664.3,1e-08]
[1753403959118,18.97667171,3664.4,3664.3,1e-08]
[1753403959320,22.45575972,3664.4,3664.3,1e-08]
[1753403959519,2.72895972,3664.4,3664.3,1e-08]
[1753403959696,7.60847171,3664.4,3664.3,1e-08]
[1753403959902,2.72886835,3664.6,3664.3,1e-08]
[1753403959903,14.5,3664.6,3664.3,1e-08]
[1753403960091,2.72895972,3664.4,3664.3,0.47000001]
[1753403960300,4.406,3664.5,3664.3,0.47000001]
[1753403960624,4.405,3664.4,3664.3,0.47000001]
[1753403960824,2.72895972,3664.4,3664.3,0.47000001]
[1753403961029,7.13395972,3664.4,3664.3,1e-08]
[1753403961791,8.120237,3664.4,3664.3,1e-08]
[1753403964393,9.013037,3664.4,3664.3,1e-08]
[1753403964937,9.802037,3664.4,3664.3,1e-08]
[1753403967016,24.302037,3664.4,3664.3,1e-08]
[1753403967239,27.302037,3664.4,3664.3,1e-08]
[1753403967538,2.72985367,3663.2,3663.1,0.044]
[1753403967694,7.13485367,3663.2,3663.1,0.044]
[1753403968127,7.57425367,3663.2,3663.1,0.044]
[1753403968335,7.89121394,3663.2,3663.1,0.044]
[1753403969094,8.34461394,3663.2,3663.1,0.044]
[1753403969642,9.13741394,3663.2,3663.1,0.044]
[1753403969996,9.27421394,3663.2,3663.1,0.044]
[1753403970196,3.83961394,3663.2,3663.1,0.044]
[1753403970528,22.42765367,3663.2,3663.1,0.044]
[1753403971139,22.86705367,3663.2,3663.1,0.044]
[1753403971322,23.32045367,3663.2,3663.1,0.044]
[1753403971803,22.86705367,3663.2,3663.1,0.044]
[1753403972029,8.82045367,3663.2,3663.1,0.044]
[1753403972425,18.91545367,3663.2,3663.1,0.044]
[1753403972738,23.32045367,3663.2,3663.1,0.044]
[1753403972937,18.91545367,3663.2,3663.1,0.044]
[1753403973141,9.83059994,3663.6,3663.1,0.044]
[1753403973142,7.859,3663.6,3663.1,0.044]
[1753403973514,2.72985367,3663.2,3663.1,0.514]
[1753403973731,0.4394,3663.8,3663.1,0.514]
[1753403973732,0.8264,3664.4,3663.3,0.7549]
[1753403973919,2.72815913,3665.5,3663.4,1.13962122]
[1753403973920,7.9294,3664.9,3663.4,1.13962122]
[1753403974107,2.72889876,3664.5,3663.5,3.53592729]
[1753403974306,7.13397997,3664.4,3663.7,0.8063]
[1753403974531,0.57098066,3664.3,3663.8,0.9446]
[1753403974743,4.405,3664.4,3663.7,0.8063]
[1753403974744,0.57098066,3664.4,3663.9,0.9446]
[1753403975056,3.29966354,3664.8,3664.1,0.8063]
[1753403975262,4.405,3664.7,3664.2,0.4746]
[1753403975470,4.97598066,3664.7,3664.2,0.9446]
[1753403975664,4.97598066,3664.7,3664.1,0.8063]
[1753403975842,4.405,3664.7,3664.3,0.9446]
[1753403976044,4.405,3664.7,3664.4,0.9446]
[1753403976270,4.405,3664.7,3664.5,0.9446]
[1753403976436,4.405,3664.7,3664.1,0.8063]
[1753403976635,4.405,3664.7,3664.2,1.31567069]
[1753403976840,4.405,3664.7,3664.3,0.47]
[1753403976841,2.72884148,3664.6,3664.3,0.47]
[1753403977167,2.72884148,3664.6,3664.4,0.47]
[1753403977168,4.404,3664.5,3664.4,0.47]
[1753403978028,4.404,3664.5,3664.4,0.9446]
[1753403979035,4.404,3664.5,3664.4,0.4746]
[1753403979375,4.404,3664.5,3664.4,0.9446]
[1753403980770,2.86546964,3664.8,3664.4,0.9446]
[1753403980771,0.1368,3664.8,3664.4,0.65887]
[1753403980998,2.72806822,3665.6,3664.6,2.72881078]
[1753403981158,0.7575,3665.8,3664.7,0.49064767]
[1753403981475,2.72848835,3665.1,3664.7,0.47]
[1753403981682,4.403,3665.0,3664.7,0.47]
[1753403981993,4.403,3664.9,3664.8,0.47]
[1753403982155,0.002,3665.8,3664.8,0.9446]
[1753403982482,2.72806634,3665.6,3664.6,0.7693]
[1753403982782,2.72850009,3665.1,3664.6,0.7693]
[1753403982956,2.86683642,3665.8,3664.1,2.73018002]
[1753403982957,0.002,3665.8,3665.4,2.72818665]
[1753403983158,0.002,3665.8,3665.6,0.7693]
[1753403983646,0.002,3665.8,3665.7,2.74862617]
[1753403983846,0.002,3665.8,3665.7,4.43769192]
[1753403984054,0.002,3665.8,3665.7,1.2351]
[1753403984250,0.002,3665.8,3665.7,1.7097]
[1753403985570,0.002,3665.8,3665.7,4.45832551]
[1753403985879,0.002,3665.8,3665.7,5.15633838]
[1753403987465,0.002,3666.6,3666.5,3.49249669]
[1753403987784,0.002,3666.6,3666.5,0.7651]
[1753403988148,0.002,3666.6,3666.5,1.2643]
[1753403988358,2.72932231,3666.6,3666.1,0.4992]
[1753403988684,0.03409245,3666.5,3666.0,0.7651]
[1753403988885,0.03409245,3666.5,3663.3,0.1]
[1753403988886,0.8958,3666.4,3665.1,0.7651]
[1753403989044,0.8958,3666.4,3663.0,12.221425]
[1753403989045,1.28299431,3666.3,3664.8,0.7651]
[1753403989246,1.28299431,3666.3,3664.5,0.7651]
[1753403989247,2.72838229,3665.2,3664.5,0.7651]
[1753403989547,4.4,3665.7,3664.6,3.67010552]
[1753403989760,4.4,3665.7,3664.7,1.38482055]
[1753403990086,7.12800967,3665.7,3664.8,0.9413]
[1753403990452,7.12800967,3665.7,3664.9,0.4992]
[1753403990791,4.4,3665.7,3664.9,0.4992]
[1753403991098,0.1368,3665.5,3665.1,0.7803]
[1753403991583,0.1368,3665.5,3665.2,0.4992]
[1753403991950,0.1368,3665.5,3665.1,1.2224]
[1753403992151,0.1368,3665.5,3665.3,0.4992]
[1753403992878,0.1368,3665.5,3665.1,0.7803]
[1753403993290,0.1368,3665.5,3665.2,0.4992]
[1753403993450,0.1368,3665.6,3665.2,0.9413]
[1753403993656,0.1368,3665.6,3665.3,0.4992]
[1753403993849,0.1368,3665.6,3664.7,0.4992]
[1753403993850,3.62399784,3665.5,3664.7,0.4992]
[1753403994083,3.62399784,3665.5,3664.2,4.399]
[1753403994084,2.86533418,3665.0,3664.4,0.4992]
[1753403994309,2.86533418,3665.0,3664.4,0.636]
[1753403994623,2.86533418,3665.0,3664.1,0.041]
[1753403994624,2.72871946,3664.8,3664.1,0.041]
[1753403994788,0.1368,3664.6,3664.1,0.1778]
[1753403994988,2.8656147,3664.6,3664.2,0.1509]
[1753403995194,0.1368,3664.6,3664.2,0.1509]
[1753403995931,0.1368,3664.6,3664.3,0.4992]
[1753403996087,0.1368,3664.6,3664.2,0.593]
[1753403996424,0.1368,3664.6,3664.3,0.4992]
[1753403997599,4.399,3665.2,3664.4,0.4992]
[1753403997804,0.1368,3664.9,3664.4,1.0781]
[1753403998004,0.1368,3664.9,3664.5,0.39580109]
[1753403998187,0.1368,3664.9,3664.5,0.89500109]
[1753403998387,0.1368,3664.9,3664.6,0.4992]
[1753403998613,0.1368,3664.9,3664.7,0.7887]
[1753403998821,4.5358,3665.2,3664.7,3.53808218]
[1753403999029,4.399,3665.2,3664.9,2.72853611]
[1753403999390,0.002,3665.5,3665.0,0.9413]
[1753403999714,0.002,3665.5,3664.8,0.44793822]
[1753403999889,0.002,3665.5,3665.0,0.4992]
[1753404000089,2.73016261,3665.5,3665.0,0.4992]
[1753404000397,2.72841987,3665.2,3664.5,0.4992]
[1753404000600,2.76260268,3665.1,3664.4,0.7603]
[1753404000921,4.399,3665.0,3664.4,0.7603]
[1753404001123,4.399,3665.0,3664.5,0.36403018]
[1753404001524,4.399,3665.0,3664.6,0.96195278]
[1753404001726,4.399,3665.0,3664.5,0.36403018]
[1753404001727,4.399,3665.0,3664.7,0.9413]
[1753404002024,4.399,3665.0,3664.8,0.4992]
[1753404002230,4.399,3665.0,3664.5,0.36403018]
[1753404002401,4.399,3665.0,3664.6,0.97866556]
[1753404002605,4.399,3665.0,3664.7,0.4992]
[1753404002828,0.002,3665.5,3664.9,0.7603]
[1753404003129,0.002,3665.5,3665.3,2.7282801]
[1753404003295,0.002,3665.5,3665.4,2.7282152]
[1753404003495,0.002,3665.5,3665.3,2.728274]
[1753404003695,0.002,3665.5,3665.4,3.2274152]